bitfinex-derivatives/quotes_BTCF0:USTF0_20250318
["timestamp","ask_amount","ask_price","bid_price","bid_amount"]
[1742321545065,0.061443,81391.0,81390.0,0.2212873]
[1742321545374,0.06162584,81393.0,81392.0,0.1228843]
[1742321545559,0.11032584,81393.0,81392.0,0.2470843]
[1742321545761,0.15712584,81393.0,81392.0,0.3454843]
[1742321546364,0.0614332,81404.0,81403.0,0.1228677]
[1742321546567,0.0614298,81409.0,81406.0,0.1228601]
[1742321546772,0.0614298,81409.0,81408.0,0.1228601]
[1742321546968,0.0614276,81412.0,81408.0,0.1228601]
[1742321546969,0.0614276,81412.0,81411.0,0.1228556]
[1742321547162,0.0614153,81428.0,81415.0,0.1842659]
[1742321547163,0.1842791,81416.0,81415.0,0.1842659]
[1742321547362,0.061419,81423.0,81418.0,0.0614224]
[1742321547562,0.06160254,81424.0,81420.0,0.122842]
[1742321547761,0.0474,81422.0,81420.0,0.122842]
[1742321547978,0.4836405,81421.0,81420.0,0.220542]
[1742321548174,0.1697405,81421.0,81420.0,0.220542]
[1742321548471,0.2171405,81421.0,81420.0,0.27125902]
[1742321549969,0.0943,81421.0,81420.0,0.27125902]
[1742321550574,0.2171405,81421.0,81420.0,0.27125902]
[1742321551767,0.0943,81421.0,81420.0,0.27125902]
[1742321552467,0.0614121,81432.0,81430.0,0.1228254]
[1742321552468,0.1842377,81432.0,81430.0,0.1228254]
[1742321552667,0.1842377,81432.0,81431.0,0.22096]
[1742321552874,0.1842377,81432.0,81431.0,0.23036058]
[1742321553075,0.0614029,81444.0,81433.0,0.1228224]
[1742321553263,0.1842333,81436.0,81435.0,0.0614096]
[1742321553461,0.1228209,81434.0,81433.0,0.1228213]
[1742321553668,0.1228239,81432.0,81431.0,0.25638458]
[1742321553873,0.1228239,81432.0,81431.0,0.13356058]
[1742321554375,0.1704239,81432.0,81431.0,0.13356058]
[1742321554576,0.1704239,81432.0,81431.0,0.25638598]
[1742321554774,0.1704239,81432.0,81431.0,0.13356058]
[1742321555570,0.2194239,81432.0,81431.0,0.13356058]
[1742321558082,0.2194239,81432.0,81431.0,0.00940058]
[1742321558282,0.2194239,81432.0,81431.0,0.1228254]
[1742321558885,0.2194239,81432.0,81431.0,0.13188667]
[1742321559078,0.2194239,81432.0,81431.0,0.00906127]
[1742321559381,0.2808359,81432.0,81431.0,0.1228254]
[1742321561488,0.2808359,81432.0,81431.0,0.1742254]
[1742321561782,0.2808359,81432.0,81431.0,0.2255254]
[1742321562285,0.2808359,81432.0,81431.0,0.23452307]
[1742321562878,0.158012,81432.0,81431.0,0.23452307]
[1742321563787,0.0966,81432.0,81431.0,0.59532307]
[1742321564186,0.0966,81432.0,81431.0,0.23452307]
[1742321564388,0.2194239,81432.0,81431.0,0.23452307]
[1742321565494,0.2194239,81432.0,81431.0,0.18322307]
[1742321567280,0.2194239,81432.0,81431.0,0.23412307]
[1742321567990,0.2194239,81432.0,81431.0,0.18322307]
[1742321568184,0.2674239,81432.0,81431.0,0.18322307]
[1742321568381,0.2674239,81432.0,81431.0,0.23472307]
[1742321569282,0.2194239,81432.0,81431.0,0.23472307]
[1742321576793,0.2194239,81432.0,81431.0,0.59552307]
[1742321576990,0.048,81443.0,81442.0,0.1228088]
[1742321577190,0.061395,81455.0,81442.0,0.12412]
[1742321577390,0.0613973,81453.0,81452.0,0.1227907]
[1742321577595,0.0613973,81453.0,81452.0,0.19161344]
[1742321577792,0.0613973,81453.0,81452.0,0.12249169]
[1742321578203,0.0485,81453.0,81452.0,0.39234576]
[1742321578507,0.0485,81453.0,81452.0,0.39397407]
[1742321579508,0.1712922,81453.0,81452.0,0.39397407]
[1742321579802,0.1712922,81453.0,81452.0,0.34567707]
[1742321580201,0.1712922,81453.0,81452.0,0.39607707]
[1742321581400,0.0485,81453.0,81452.0,0.39607707]
[1742321581992,0.1712922,81453.0,81452.0,0.39607707]
[1742321582188,0.0485,81453.0,81452.0,0.39607707]
[1742321583705,0.1712922,81453.0,81452.0,0.39607707]
[1742321584207,0.2185922,81453.0,81452.0,0.39607707]
[1742321584797,0.2185922,81453.0,81452.0,0.22288337]
[1742321585596,0.2185922,81453.0,81452.0,0.05236337]
[1742321585797,0.1227953,81451.0,81450.0,0.12408]
[1742321586003,0.1228013,81447.0,81446.0,0.3608]
[1742321586308,0.1228028,81446.0,81445.0,0.12408]
[1742321586533,0.1715028,81446.0,81445.0,0.2468843]
[1742321586804,0.2196028,81446.0,81445.0,0.29936081]
[1742321587110,0.2196028,81446.0,81445.0,0.17655651]
[1742321587496,0.2196028,81446.0,81445.0,0.05247651]
[1742321587699,0.1228043,81445.0,81444.0,0.00018422]
[1742321587897,0.1738043,81445.0,81444.0,0.00018422]
[1742321588195,0.2699043,81445.0,81444.0,0.00018422]
[1742321588807,0.2699043,81445.0,81444.0,6.807e-05]
[1742321589399,0.0614049,81442.0,81438.0,0.09308805]
[1742321589606,0.2802192,81441.0,81440.0,0.0614058]
[1742321590001,0.1574059,81441.0,81440.0,0.1842176]
[1742321590316,0.096,81441.0,81440.0,0.1842176]
[1742321590512,0.096,81441.0,81440.0,0.58838667]
[1742321590812,0.002,81445.0,81444.0,0.1228058]
[1742321591113,0.002,81445.0,81444.0,0.3456858]
[1742321592310,0.002,81445.0,81444.0,0.7064858]
[1742321592697,0.002,81445.0,81444.0,0.7545858]
[1742321592903,0.05,81451.0,81450.0,0.1227968]
[1742321593210,0.1727953,81451.0,81450.0,0.1227968]
[1742321593414,0.1727953,81451.0,81450.0,0.2177968]
[1742321593598,0.05,81451.0,81450.0,0.2177968]
[1742321593801,0.1011,81451.0,81450.0,0.2177968]
[1742321595012,0.2238953,81451.0,81450.0,0.2177968]
[1742321595209,0.2238953,81451.0,81450.0,0.0471]
[1742321595396,0.1228103,81441.0,81440.0,0.16618087]
[1742321595604,0.4836103,81441.0,81440.0,0.16618087]
[1742321596108,0.1738103,81441.0,81440.0,0.26568087]
[1742321596614,0.2232103,81441.0,81440.0,0.26568087]
[1742321597515,0.1004,81441.0,81440.0,0.26568087]
[1742321597903,0.1228013,81448.0,81447.0,0.0614006]
[1742321598106,0.2330012,81448.0,81447.0,0.12408]
[1742321598311,0.1228103,81441.0,81440.0,0.04436907]
[1742321598502,0.4836103,81441.0,81440.0,0.04436907]
[1742321598701,0.5791103,81441.0,81440.0,0.01648934]
[1742321598910,0.5791103,81441.0,81440.0,0.002]
[1742321599111,0.6271103,81441.0,81440.0,0.002]
[1742321599619,0.1228224,81433.0,81430.0,1.0152666]
[1742321599803,0.1228224,81433.0,81430.0,1.0152664]
[1742321600111,0.2193224,81433.0,81430.0,0.89244]
[1742321600416,0.2193224,81433.0,81430.0,1.0152656]
[1742321600607,0.2193224,81433.0,81431.0,0.13182177]
[1742321600811,0.2193224,81433.0,81432.0,0.12300812]
[1742321601412,0.2193224,81433.0,81432.0,0.00018422]
[1742321602316,0.2213224,81433.0,81432.0,0.00018422]
[1742321602514,0.5821224,81433.0,81432.0,0.00018422]
[1742321603107,0.5821224,81433.0,81432.0,0.12300812]
[1742321603617,0.5811224,81433.0,81432.0,0.12300812]
[1742321603816,0.2203224,81433.0,81432.0,0.12300812]
[1742321604319,0.2193224,81433.0,81432.0,0.12300812]
[1742321604516,0.2203224,81433.0,81432.0,0.12300812]
[1742321606105,0.0975,81433.0,81432.0,0.12300812]
[1742321606507,0.001,81433.0,81432.0,0.12300812]
[1742321607514,0.0508,81440.0,81439.0,0.1228133]
[1742321607714,0.0613971,81452.0,81440.0,0.1228118]
[1742321608022,0.1228006,81448.0,81440.0,0.1228118]
[1742321608225,0.1228042,81446.0,81440.0,0.1228118]
[1742321608427,0.1228098,81442.0,81440.0,0.1228118]
[1742321608622,0.12299452,81441.0,81440.0,0.1709118]
[1742321608923,0.17289452,81441.0,81440.0,0.1709118]
[1742321609523,0.17289452,81441.0,81434.0,0.06141]
[1742321609524,0.1842284,81436.0,81434.0,0.06141]
[1742321609721,0.2203194,81435.0,81434.0,0.06141]
[1742321609918,0.1228224,81433.0,81432.0,0.00018422]
[1742321610115,0.1208224,81433.0,81432.0,0.00018422]
[1742321610319,0.2155224,81433.0,81432.0,0.00018422]
[1742321610726,0.2155224,81433.0,81432.0,0.12426422]
[1742321610927,0.2155224,81433.0,81432.0,0.24708812]
[1742321611110,0.2155224,81433.0,81432.0,0.12426422]
[1742321611315,0.2115224,81433.0,81432.0,0.12426422]
[1742321611818,0.2085224,81433.0,81432.0,0.12426422]
[1742321612018,0.2085224,81433.0,81432.0,0.00018422]
[1742321612815,0.2085224,81433.0,81432.0,0.12300812]
[1742321613221,0.2095224,81433.0,81432.0,0.12300812]
[1742321613615,0.2085224,81433.0,81432.0,0.12300812]
[1742321613811,0.2095224,81433.0,81432.0,0.00018422]
[1742321614023,0.1228239,81432.0,81431.0,0.17738647]
[1742321614523,0.5792239,81432.0,81431.0,0.17738647]
[1742321614713,0.5792239,81432.0,81431.0,0.05330647]
[1742321614914,0.1228254,81431.0,81430.0,0.89244]
[1742321615118,0.1228254,81431.0,81430.0,1.05843]
[1742321615319,0.2181254,81431.0,81430.0,1.05843]
[1742321616631,0.2191254,81431.0,81430.0,1.05843]
[1742321617025,0.2191254,81431.0,81430.0,1.06759248]
[1742321617326,0.2191254,81431.0,81430.0,0.9356031]
[1742321618431,0.2201254,81431.0,81430.0,0.9356031]
[1742321618634,0.2191254,81431.0,81430.0,0.9356031]
[1742321618821,0.2221254,81431.0,81430.0,0.9356031]
[1742321620630,0.2211254,81431.0,81430.0,0.9356031]
[1742321620833,0.2241254,81431.0,81430.0,0.9356031]
[1742321621024,0.1288254,81431.0,81430.0,1.05843]
[1742321621226,0.1288254,81431.0,81430.0,1.20013]
[1742321621726,0.1228156,81438.0,81437.0,0.1228164]
[1742321622022,0.1228138,81439.0,81438.0,0.1228149]
[1742321622224,0.0978,81446.0,81440.0,0.1228118]
[1742321622423,0.1228061,81444.0,81440.0,0.1704118]
[1742321622632,0.049,81446.0,81440.0,0.1704118]
[1742321623032,0.061397,81452.0,81451.0,0.184189]
[1742321623230,0.061397,81452.0,81451.0,0.308269]
[1742321624326,0.111597,81452.0,81451.0,0.308269]
[1742321624735,0.114597,81452.0,81451.0,0.308269]
[1742321625538,0.117597,81452.0,81451.0,0.308269]
[1742321627533,0.166397,81452.0,81451.0,0.308269]
[1742321631439,0.166397,81452.0,81451.0,0.669069]
[1742321633045,0.0613951,81455.0,81451.0,0.669069]
[1742321633046,0.06139,81462.0,81459.0,0.1227832]
[1742321634340,0.12596592,81460.0,81459.0,0.1227832]
[1742321634543,0.12596592,81460.0,81459.0,0.16587017]
[1742321634843,0.0488,81460.0,81459.0,0.21607017]
[1742321635044,0.0613807,81476.0,81475.0,0.1227546]
[1742321635843,0.0613807,81476.0,81475.0,0.1735546]
[1742321636342,0.0613807,81476.0,81475.0,0.2237546]
[1742321636840,0.1090807,81476.0,81475.0,0.2237546]
[1742321637043,0.0477,81476.0,81475.0,0.2329729]
[1742321637228,0.1704576,81476.0,81475.0,0.2329729]
[1742321638342,0.2194576,81476.0,81475.0,0.2329729]
[1742321640443,0.2194576,81476.0,81475.0,0.0092183]
[1742321640631,0.1227606,81474.0,81473.0,0.124]
[1742321641044,0.2224606,81474.0,81473.0,0.124]
[1742321641438,0.2224606,81474.0,81473.0,0.2467621]
[1742321642145,0.2224606,81474.0,81473.0,0.35494547]
[1742321642332,0.2224606,81474.0,81473.0,0.00938337]
[1742321642533,0.1227681,81469.0,81460.0,0.0472]
[1742321642845,0.1227772,81463.0,81459.0,0.16708697]
[1742321643049,0.1227772,81463.0,81459.0,0.04308697]
[1742321643343,0.2705772,81463.0,81459.0,0.04308697]
[1742321643547,0.0614072,81439.0,81436.0,0.1842231]
[1742321643744,0.1228179,81436.0,81435.0,0.94068]
[1742321643945,0.1228179,81436.0,81435.0,1.1386994]
[1742321644133,0.1228179,81436.0,81435.0,1.02523112]
[1742321644333,0.2168179,81436.0,81435.0,1.02523112]
[1742321644533,0.2168179,81436.0,81435.0,0.90123112]
[1742321644733,0.2168179,81436.0,81429.0,0.0001841]
[1742321644734,0.1228269,81430.0,81429.0,0.0001841]
[1742321644933,0.4836269,81430.0,81429.0,0.0001841]
[1742321645448,0.5776269,81430.0,81429.0,0.0001841]
[1742321646438,0.5776269,81430.0,81415.0,0.0614245]
[1742321646439,0.122839,81422.0,81421.0,0.04369074]
[1742321646746,0.1228435,81419.0,81418.0,0.1228435]
[1742321647242,0.1228435,81419.0,81418.0,0.13199547]
[1742321647446,0.1228435,81419.0,81418.0,0.00915197]
[1742321647745,0.1228692,81402.0,81401.0,0.1691707]
[1742321648135,0.1198692,81402.0,81401.0,0.1691707]
[1742321648332,0.1228722,81400.0,81399.0,1.01608]
[1742321648544,0.0614398,81396.0,81393.0,0.00018422]
[1742321648846,0.1228812,81394.0,81393.0,0.00921085]
[1742321649051,0.1228812,81394.0,81393.0,0.00018422]
[1742321649438,0.2162812,81394.0,81393.0,0.04313125]
[1742321650036,0.2112812,81394.0,81393.0,0.04313125]
[1742321650231,0.0984,81394.0,81393.0,0.52681405]
[1742321650442,0.0614337,81404.0,81396.0,0.0614388]
[1742321650650,0.2801093,81403.0,81402.0,0.1228677]
[1742321651337,0.3415455,81403.0,81402.0,0.1714677]
[1742321651538,0.3415455,81403.0,81402.0,0.1694677]
[1742321651738,0.2186721,81403.0,81402.0,0.1694677]
[1742321651941,0.0471,81403.0,81402.0,0.2935077]
[1742321652140,0.00018422,81410.0,81409.0,0.1228586]
[1742321652344,0.0614141,81430.0,81409.0,0.1228586]
[1742321652345,0.3608,81437.0,81426.0,0.1228299]
[1742321652649,0.2179314,81428.0,81427.0,0.1228314]
[1742321652848,0.122833,81426.0,81425.0,0.0614163]
[1742321653058,0.122833,81426.0,81425.0,0.1121163]
[1742321653437,0.1565156,81428.0,81427.0,0.1228314]
[1742321653438,0.0951,81428.0,81427.0,0.1228314]
[1742321653840,0.0951,81428.0,81427.0,0.17865269]
[1742321654137,0.2179299,81428.0,81427.0,0.17865269]
[1742321654945,0.5787299,81428.0,81427.0,0.17865269]
[1742321655853,0.5827299,81428.0,81427.0,0.17865269]
[1742321657446,0.2219299,81428.0,81427.0,0.17865269]
[1742321657647,0.004,81428.0,81427.0,0.17865269]
[1742321657843,0.00018422,81434.0,81433.0,0.1228224]
[1742321658044,0.00018422,81434.0,81433.0,0.4836224]
[1742321658547,0.00018422,81434.0,81433.0,0.5824224]
[1742321658944,0.00518422,81434.0,81433.0,0.5824224]
[1742321659148,0.0476,81441.0,81440.0,0.1228118]
[1742321659455,0.0476,81441.0,81440.0,0.2468518]
[1742321659656,0.1704103,81441.0,81440.0,0.2468518]
[1742321660043,0.1704103,81441.0,81440.0,0.0471]
[1742321660243,0.1228164,81437.0,81436.0,0.12404]
[1742321660443,0.1228164,81437.0,81436.0,0.1334241]
[1742321660642,0.1228164,81437.0,81436.0,0.12404]
[1742321660840,0.1228269,81430.0,81429.0,0.89228]
[1742321661150,0.4796269,81430.0,81429.0,0.89228]
[1742321661356,0.4796269,81430.0,81429.0,1.0151084]
[1742321661853,0.5782269,81430.0,81429.0,1.0151084]
[1742321662555,0.2174269,81430.0,81429.0,1.0151084]
[1742321663055,0.2174269,81430.0,81429.0,0.89228]
[1742321663941,0.0614187,81423.0,81413.0,0.89224]
[1742321664139,0.122845,81418.0,81415.0,0.12404]
[1742321664349,0.122845,81418.0,81413.0,0.89224]
[1742321664558,0.218345,81418.0,81413.0,0.89224]
[1742321664756,0.218345,81418.0,81417.0,0.05610763]
[1742321665056,0.218345,81418.0,81417.0,0.00018422]
[1742321670453,0.218345,81418.0,81417.0,0.12303072]
[1742321670853,0.218345,81418.0,81417.0,0.22313072]
[1742321671058,0.220345,81418.0,81417.0,0.22313072]
[1742321671659,0.218345,81418.0,81417.0,0.22313072]
[1742321671956,0.221345,81418.0,81417.0,0.22313072]
[1742321672162,0.0515,81418.0,81417.0,0.22313072]
[1742321672461,0.0485,81418.0,81417.0,0.22313072]
[1742321672660,0.002,81418.0,81417.0,0.22313072]
[1742321672856,0.1842536,81427.0,81426.0,0.1842478]
[1742321673063,0.2327536,81427.0,81426.0,0.1842478]
[1742321673355,0.2827536,81427.0,81426.0,0.1842478]
[1742321673555,0.1842536,81427.0,81426.0,0.6456478]
[1742321673760,0.0614158,81427.0,81426.0,0.6456478]
[1742321674153,0.0614158,81427.0,81426.0,0.6476478]
[1742321674861,0.0614158,81427.0,81426.0,0.6456478]
[1742321675161,0.05595995,81455.0,81437.0,0.1228164]
[1742321675162,0.5450242,81438.0,81437.0,0.1228164]
[1742321675347,0.4222079,81438.0,81437.0,0.2468564]
[1742321675544,0.0614079,81438.0,81437.0,0.2468564]
[1742321675751,0.0614029,81444.0,81442.0,0.1842094]
[1742321675963,0.1080029,81444.0,81443.0,0.0925]
[1742321676461,0.0964,81444.0,81443.0,0.27094631]
[1742321676657,0.0613988,81450.0,81447.0,0.1227983]
[1742321676658,0.1228001,81448.0,81447.0,0.1227983]
[1742321676857,0.00012208,81452.0,81447.0,0.3393383]
[1742321677153,0.00012208,81452.0,81451.0,0.1227953]
[1742321677354,0.00012208,81452.0,81451.0,0.2200953]
[1742321678057,0.12291578,81452.0,81451.0,0.2200953]
[1742321679053,0.00012208,81452.0,81451.0,0.2200953]
[1742321680345,0.12291578,81452.0,81451.0,0.2200953]
[1742321682557,0.00012208,81452.0,81451.0,0.2200953]
[1742321682766,0.12291578,81452.0,81451.0,0.2200953]
[1742321683151,0.17261578,81452.0,81451.0,0.2200953]
[1742321683760,0.17261578,81452.0,81451.0,0.0462]
[1742321683761,0.22131578,81452.0,81451.0,0.0462]
[1742321683971,0.1228043,81445.0,81444.0,0.2232043]
[1742321684153,0.1228043,81445.0,81444.0,0.3472043]
[1742321684458,0.2212043,81445.0,81444.0,0.3472043]
[1742321684861,0.0984,81445.0,81444.0,0.3472043]
[1742321685057,0.2212043,81445.0,81444.0,0.3472043]
[1742321688659,0.0613993,81449.0,81448.0,0.1227998]
[1742321688858,0.1841994,81449.0,81448.0,0.2214998]
[1742321689060,0.1841994,81449.0,81448.0,0.5822998]
[1742321689260,0.1227967,81451.0,81450.0,0.1227968]
[1742321689456,0.00012208,81452.0,81451.0,0.1227953]
[1742321689766,0.00012208,81452.0,81451.0,0.2943953]
[1742321690061,0.00012208,81452.0,81451.0,0.3427953]
[1742321690768,0.12291578,81452.0,81451.0,0.3427953]
[1742321691570,0.12291578,81452.0,81451.0,0.3932953]
[1742321691762,0.00012208,81452.0,81451.0,0.3932953]
[1742321692070,0.0613898,81462.0,81461.0,0.1227802]
[1742321692258,0.05,81462.0,81461.0,0.6075802]
[1742321692571,0.1841527,81472.0,81471.0,0.1227636]
[1742321692761,0.1841527,81472.0,81471.0,0.2966636]
[1742321693156,0.2341527,81472.0,81471.0,0.2966636]
[1742321693360,0.2828527,81472.0,81471.0,0.3430636]
[1742321694166,0.2828527,81472.0,81471.0,0.0093903]
[1742321694474,0.2828527,81472.0,81463.0,1.25302422]
[1742321694475,0.1227757,81464.0,81463.0,1.37580142]
[1742321694667,0.1227757,81464.0,81463.0,1.13900142]
[1742321694969,0.2233757,81464.0,81463.0,1.13900142]
[1742321695369,0.2233757,81464.0,81463.0,1.19502891]
[1742321695579,0.2233757,81464.0,81463.0,1.24372891]
[1742321695876,0.2233757,81464.0,81463.0,1.3026842]
[1742321696260,0.2233757,81464.0,81463.0,0.957407]
[1742321696465,0.5841757,81464.0,81463.0,0.957407]
[1742321698377,0.5841757,81464.0,81463.0,0.94825171]
[1742321700077,0.2233757,81464.0,81463.0,0.94825171]
[1742321700380,0.1227953,81451.0,81450.0,0.3608]
[1742321700678,0.1227983,81449.0,81448.0,0.12396]
[1742321700978,0.1227983,81449.0,81448.0,0.17926494]
[1742321701162,0.2208983,81449.0,81448.0,0.17926494]
[1742321701576,0.2208983,81449.0,81448.0,0.30206474]
[1742321701765,0.2208983,81449.0,81448.0,0.23294323]
[1742321701966,0.2208983,81449.0,81448.0,0.34465046]
[1742321702261,0.2208983,81449.0,81448.0,0.17425066]
[1742321703566,0.2208983,81449.0,81448.0,0.29705046]
[1742321704179,0.2208983,81449.0,81448.0,0.17425066]
[1742321704579,0.2208983,81449.0,81445.0,0.89196]
[1742321704782,0.2208983,81449.0,81439.0,0.3608]
[1742321704783,0.1228103,81441.0,81439.0,0.3608]
[1742321705369,0.2173103,81441.0,81436.0,0.2467775]
[1742321705572,0.2173103,81441.0,81436.0,0.12396]
[1742321705963,0.2173103,81441.0,81439.0,0.00936636]
[1742321706374,0.5781103,81441.0,81440.0,0.05439096]
[1742321706769,0.5781103,81441.0,81440.0,0.00018422]
[1742321707469,0.2173103,81441.0,81440.0,0.05467531]
[1742321707677,0.2173103,81441.0,81440.0,0.00018422]
[1742321709771,0.2173103,81441.0,81440.0,0.12299602]
[1742321709973,0.2173103,81441.0,81440.0,0.22129602]
[1742321710168,0.1704103,81441.0,81440.0,0.58209602]
[1742321710375,0.1228065,81444.0,81443.0,0.1228073]
[1742321710565,0.0475,81449.0,81446.0,0.0614006]
[1742321710765,0.0476,81456.0,81455.0,0.18418]
[1742321710766,0.0613949,81456.0,81455.0,0.18418]
[1742321710974,0.1702847,81458.0,81457.0,0.1227862]
[1742321711174,0.1227877,81456.0,81455.0,0.12396]
[1742321711567,0.1702877,81456.0,81455.0,0.12396]
[1742321711764,0.1702877,81456.0,81455.0,0.2467492]
[1742321711963,0.0613946,81455.0,81448.0,0.3608]
[1742321712180,0.1227968,81450.0,81449.0,0.12396]
[1742321712378,0.1227946,81452.0,81451.0,0.1841912]
[1742321712569,0.1702946,81452.0,81451.0,0.1841912]
[1742321713075,0.0475,81452.0,81451.0,0.1841912]
[1742321713875,0.1227757,81464.0,81462.0,0.0613892]
[1742321714067,0.0493,81463.0,81462.0,0.1841679]
[1742321714271,0.0493,81463.0,81462.0,0.5449679]
[1742321714868,0.1227659,81471.0,81470.0,0.1227666]
[1742321715063,0.0493,81471.0,81470.0,0.4835666]
[1742321715978,0.0493,81471.0,81470.0,0.41446628]
[1742321716175,0.1720651,81471.0,81470.0,0.42341109]
[1742321716779,0.2205651,81471.0,81470.0,0.42341109]
[1742321717569,0.2205651,81471.0,81470.0,0.54617769]
[1742321717773,0.2205651,81471.0,81470.0,0.47707563]
[1742321718374,0.2205651,81471.0,81470.0,0.06261109]
[1742321718571,0.1227681,81469.0,81468.0,0.12396]
[1742321718774,0.1227681,81469.0,81468.0,0.06094015]
[1742321719088,0.1227802,81461.0,81460.0,0.12396]
[1742321719274,0.1227802,81461.0,81460.0,0.30919307]
[1742321719470,0.0468,81468.0,81462.0,0.0613892]
[1742321719670,0.0468,81468.0,81460.0,0.54721137]
[1742321719671,0.4221813,81473.0,81472.0,0.1227636]
[1742321719873,0.1227571,81477.0,81476.0,0.1227576]
[1742321720065,0.0966,81487.0,81478.0,0.0613768]
[1742321720066,0.1841272,81481.0,81478.0,0.0613768]
[1742321720271,0.0613757,81481.0,81480.0,0.12275]
[1742321720474,0.1227436,81486.0,81483.0,0.122747]
[1742321720676,0.0613696,81489.0,81483.0,0.122747]
[1742321720677,0.0613696,81489.0,81488.0,0.1227395]
[1742321720873,0.1579652,81495.0,81492.0,0.061366]
[1742321721074,0.1227282,81496.0,81495.0,0.122729]
[1742321721380,0.1840886,81498.0,81497.0,0.1227259]
[1742321721595,0.0509,81499.0,81498.0,0.1227244]
[1742321721596,0.1736229,81499.0,81498.0,0.1227244]
[1742321721878,0.0509,81499.0,81487.0,0.1241441]
[1742321722086,0.1227364,81492.0,81491.0,0.1840935]
[1742321722376,0.1841032,81492.0,81491.0,0.1227312]
[1742321722580,0.1227395,81488.0,81487.0,0.1241441]
[1742321722785,0.1227395,81488.0,81487.0,0.25617683]
[1742321723178,0.1227395,81488.0,81487.0,0.31657359]
[1742321723382,0.1227395,81488.0,81487.0,0.19261359]
[1742321723586,0.1227395,81488.0,81487.0,0.19379259]
[1742321724283,0.1227395,81488.0,81487.0,0.31653359]
[1742321724483,0.1227395,81488.0,81487.0,0.19379259]
[1742321724884,0.1227395,81488.0,81487.0,0.31653359]
[1742321725087,0.1227395,81488.0,81487.0,0.36413359]
[1742321725785,0.1227395,81488.0,81487.0,0.41493359]
[1742321726373,0.1227395,81488.0,81487.0,0.77573359]
[1742321727081,0.0488,81498.0,81487.0,0.65299259]
[1742321727270,0.1841049,81495.0,81494.0,0.0613637]
[1742321727474,0.1841049,81495.0,81494.0,0.1852837]
[1742321727987,0.1841049,81495.0,81494.0,0.2794837]
[1742321729976,0.1841049,81495.0,81494.0,0.21812]
[1742321730172,0.1841049,81495.0,81494.0,0.0464]
[1742321730380,0.1841049,81495.0,81487.0,0.55459259]
[1742321730381,0.1227395,81488.0,81487.0,0.06987259]
[1742321730572,0.4835395,81488.0,81487.0,0.06987259]
[1742321730777,0.6268395,81488.0,81487.0,0.06987259]
[1742321731584,0.1227515,81480.0,81479.0,0.0461]
[1742321732185,0.2160515,81480.0,81479.0,0.1688531]
[1742321732482,0.2160515,81480.0,81479.0,0.05509638]
[1742321732988,0.2160515,81480.0,81479.0,0.23927474]
[1742321733191,0.2160515,81480.0,81479.0,0.1688531]
[1742321733579,0.2160515,81480.0,81479.0,0.0461]
[1742321735075,0.1227636,81472.0,81465.0,0.3608]
[1742321735278,0.1227636,81472.0,81471.0,0.00948925]
[1742321735480,0.0469,81472.0,81471.0,0.18360792]
[1742321735683,0.1227552,81478.0,81477.0,0.1841326]
[1742321735883,0.1227552,81478.0,81477.0,0.6688526]
[1742321737594,0.1696552,81478.0,81477.0,0.6688526]
[1742321737795,0.2206552,81478.0,81477.0,0.6688526]
[1742321738294,0.2206552,81478.0,81477.0,0.7182526]
[1742321739383,0.2206552,81478.0,81477.0,0.53412]
[1742321739580,0.2206552,81478.0,81477.0,0.0494]
[1742321739781,0.1227636,81472.0,81471.0,0.06084282]
[1742321740190,0.1711636,81472.0,81471.0,0.06084282]
[1742321740382,0.2201636,81472.0,81471.0,0.06084282]
[1742321741097,0.2676636,81472.0,81471.0,0.06084282]
[1742321742196,0.2676636,81472.0,81471.0,0.18360792]
[1742321742396,0.0484,81472.0,81471.0,0.18360792]
[1742321742697,0.1841353,81477.0,81476.0,0.1227576]
[1742321742898,0.0461,81479.0,81478.0,0.1227546]
[1742321743199,0.1841221,81483.0,81482.0,0.1227485]
[1742321743496,0.0001837,81488.0,81486.0,0.1227425]
[1742321743497,0.0461,81487.0,81486.0,0.1227425]
[1742321743681,0.0461,81487.0,81486.0,0.5303425]
[1742321743886,0.0001837,81488.0,81487.0,0.122741]
[1742321744081,0.0613583,81504.0,81499.0,0.1227229]
[1742321744293,0.0613583,81504.0,81499.0,0.6092429]
[1742321744494,0.0496,81503.0,81499.0,0.6596429]
[1742321745399,0.1723174,81503.0,81499.0,0.6596429]
[1742321745594,0.0496,81503.0,81499.0,0.2988429]
[1742321745895,0.2227214,81500.0,81499.0,0.2988429]
[1742321746090,0.2227214,81500.0,81499.0,0.17612]
[1742321746292,0.2227214,81500.0,81499.0,0.12572]
[1742321746482,0.1227274,81496.0,81495.0,0.3608]
[1742321746688,0.1227335,81492.0,81491.0,0.1263041]
[1742321747084,0.2169335,81492.0,81491.0,0.1263041]
[1742321747794,0.2169335,81492.0,81491.0,0.2490391]
[1742321747987,0.2169335,81492.0,81491.0,0.1263041]
[1742321749000,0.2169335,81492.0,81491.0,0.2490391]
[1742321749299,0.2169335,81492.0,81491.0,0.1263041]
[1742321750401,0.1709335,81492.0,81491.0,0.6098391]
[1742321750591,0.1709335,81492.0,81491.0,0.6571391]
[1742321751585,0.0482,81492.0,81491.0,0.6571391]
[1742321751799,0.1709335,81492.0,81491.0,0.6571391]
[1742321752294,0.0482,81492.0,81491.0,0.6571391]
[1742321752693,0.1709335,81492.0,81491.0,0.6571391]
[1742321754498,0.0482,81492.0,81491.0,0.6571391]
[1742321754699,0.1227252,81498.0,81497.0,0.0613629]
[1742321755599,0.1711252,81498.0,81497.0,0.0613629]
[1742321755795,0.1711252,81498.0,81497.0,0.1102629]
[1742321756408,0.2202252,81498.0,81497.0,0.1102629]
[1742321757102,0.2202252,81498.0,81497.0,0.0489]
[1742321757298,0.2202252,81498.0,81497.0,0.1716259]
[1742321757501,0.2202252,81498.0,81497.0,0.1736259]
[1742321758293,0.2202252,81498.0,81497.0,0.1716259]
[1742321760598,0.2202252,81498.0,81497.0,0.1726259]
[1742321761400,0.2202252,81498.0,81497.0,0.1716259]
[1742321762499,0.1,81500.0,81499.0,0.1227229]
[1742321762700,0.2227214,81500.0,81499.0,0.6091629]
[1742321763008,0.1,81500.0,81499.0,0.6589629]
[1742321763401,0.1227113,81507.0,81506.0,0.0613561]
[1742321763607,0.1570547,81508.0,81507.0,0.1227109]
[1742321763805,0.1103547,81508.0,81507.0,0.1227109]
[1742321764002,0.049,81508.0,81507.0,0.1227109]
[1742321764599,0.1227109,81507.0,81506.0,0.18785261]
[1742321764798,0.1720109,81507.0,81506.0,0.18785261]
[1742321764999,0.1716109,81507.0,81506.0,0.31056501]
[1742321765199,0.0489,81507.0,81506.0,0.67136501]
[1742321766210,0.1716109,81507.0,81506.0,0.67136501]
[1742321766397,0.0489,81507.0,81506.0,0.67136501]
[1742321766803,0.1716109,81507.0,81506.0,0.67136501]
[1742321767004,0.0489,81507.0,81506.0,0.67136501]
[1742321768014,0.0493,81515.0,81514.0,0.1227003]
[1742321768317,0.1840358,81522.0,81521.0,0.1226898]